[Event "GrandPrix_29.05"]
[Site "Chess.com"]
[Date "2020.05.29"]
[Round "4"]
[White "Jan1401"]
[Black "RogerFederer13"]
[Result "1-0"]
[WhiteElo "2419"]
[BlackElo "2100"]
[TimeControl "600+2"]
[EndTime "11:01:08 PDT"]
[Termination "Jan1401 won by resignation"]

1. e4 {[%clk 0:09:59.4]} 1... c6 {[%clk 0:10:01.1]} 2. Nf3 {[%clk 0:09:58.6]}
2... d5 {[%clk 0:10:02]} 3. d3 {[%clk 0:09:59.6]} 3... Bg4 {[%clk 0:09:46.4]} 4.
h3 {[%clk 0:09:59.6]} 4... Bh5 {[%clk 0:09:43.4]} 5. g4 {[%clk 0:09:52.8]} 5...
Bg6 {[%clk 0:09:43.6]} 6. Qe2 {[%clk 0:09:39.2]} 6... e6 {[%clk 0:08:24.2]} 7.
h4 {[%clk 0:09:20.9]} 7... dxe4 {[%clk 0:07:36.1]} 8. dxe4 {[%clk 0:09:19.5]}
8... h5 {[%clk 0:07:36.9]} 9. g5 {[%clk 0:08:27.7]} 9... Nd7 {[%clk 0:06:55.7]}
10. Nbd2 {[%clk 0:07:57.3]} 10... Qc7 {[%clk 0:06:30.7]} 11. b3 {[%clk
0:07:23.9]} 11... Bd6 {[%clk 0:05:47.3]} 12. Bb2 {[%clk 0:07:02.2]} 12... Ne5
{[%clk 0:05:47]} 13. O-O-O {[%clk 0:06:43.9]} 13... O-O-O {[%clk 0:05:16.2]} 14.
Bh3 {[%clk 0:06:41.5]} 14... Ne7 {[%clk 0:05:00.8]} 15. Nd4 {[%clk 0:06:19.4]}
15... Bc5 {[%clk 0:04:22.8]} 16. Bxe6+ {[%clk 0:06:09.7]} 16... Kb8 {[%clk
0:04:22.8]} 17. Nc4 {[%clk 0:05:17.9]} 17... Nxc4 {[%clk 0:02:30.1]} 18. Bxc4
{[%clk 0:05:16]} 18... b5 {[%clk 0:02:06.8]} 19. Nxc6+ {[%clk 0:04:26]} 19...
Nxc6 {[%clk 0:01:25.5]} 20. Bd5 {[%clk 0:04:21.5]} 20... Nb4 {[%clk 0:01:18.3]}
21. Qxb5+ {[%clk 0:04:15.2]} 21... Qb6 {[%clk 0:01:19.6]} 22. Be5+ {[%clk
0:03:40.2]} 22... Bd6 {[%clk 0:01:20.4]} 23. Qxb6+ {[%clk 0:03:34.5]} 23... axb6
{[%clk 0:01:22.3]} 24. Bxg7 {[%clk 0:03:34.4]} 24... Nxd5 {[%clk 0:01:06.7]} 25.
Bxh8 {[%clk 0:03:03.8]} 25... Bxe4 {[%clk 0:01:01.1]} 26. Rhe1 {[%clk
0:03:02.5]} 26... Rxh8 {[%clk 0:00:21.9]} 27. Rxe4 {[%clk 0:02:56.8]} 27... Nc3
{[%clk 0:00:21.2]} 28. Rxd6 {[%clk 0:02:34.6]} 28... Nxe4 {[%clk 0:00:22.5]} 29.
Rxb6+ {[%clk 0:02:33.6]} 29... Kc7 {[%clk 0:00:24.1]} 30. Rb4 {[%clk 0:02:35]}
30... Nxf2 {[%clk 0:00:18.6]} 31. Rf4 {[%clk 0:02:35.5]} 31... Ng4 {[%clk
0:00:20.3]} 32. Rxf7+ {[%clk 0:02:35.9]} 32... Kd6 {[%clk 0:00:21.8]} 33. a4
{[%clk 0:02:35.4]} 33... Ne5 {[%clk 0:00:20.3]} 34. Rf6+ {[%clk 0:02:33.4]}
34... Kd5 {[%clk 0:00:20.2]} 35. Kb2 {[%clk 0:02:32.9]} 35... Ke4 {[%clk
0:00:18]} 36. a5 {[%clk 0:02:29]} 36... Nf3 {[%clk 0:00:12.8]} 37. Rh6 {[%clk
0:02:24.9]} 37... Ra8 {[%clk 0:00:04.7]} 38. b4 {[%clk 0:02:16.3]} 38... Nxh4
{[%clk 0:00:05.4]} 39. Rxh5 {[%clk 0:02:17.2]} 39... Nf5 {[%clk 0:00:06.4]} 40.
g6 {[%clk 0:02:01.8]} 40... Nd6 {[%clk 0:00:04.2]} 41. g7 {[%clk 0:02:00.4]}
41... Rg8 {[%clk 0:00:04.8]} 42. Rg5 {[%clk 0:01:59.4]} 42... Nf7 {[%clk
0:00:05.1]} 43. Rg2 {[%clk 0:01:58.1]} 43... Kf5 {[%clk 0:00:02.8]} 44. Kb3
{[%clk 0:01:57.5]} 44... Ng5 {[%clk 0:00:04.3]} 45. b5 {[%clk 0:01:54.4]} 45...
Rxg7 {[%clk 0:00:05.5]} 46. a6 {[%clk 0:01:53.5]} 46... Ra7 {[%clk 0:00:06.2]}
47. Kb4 {[%clk 0:01:53.9]} 47... Ne4 {[%clk 0:00:07.3]} 48. Ka5 {[%clk
0:01:52.1]} 48... Nd6 {[%clk 0:00:05.7]} 49. Re2 {[%clk 0:01:31.1]} 49... Nc4+
{[%clk 0:00:03]} 50. Kb4 {[%clk 0:01:28.6]} 50... Rc7 {[%clk 0:00:04.5]} 51. c3
{[%clk 0:01:22.5]} 51... Kf6 {[%clk 0:00:03.7]} 52. Ra2 {[%clk 0:01:22.9]} 52...
Nb6 {[%clk 0:00:02.2]} 53. a7 {[%clk 0:01:21.6]} 53... Nd5+ {[%clk 0:00:02.9]}
54. Kb3 {[%clk 0:01:16.9]} 54... Rxc3+ {[%clk 0:00:03.2]} 55. Kb2 {[%clk
0:01:16.2]} 55... Rc8 {[%clk 0:00:04.8]} 56. a8=Q {[%clk 0:01:14.2]} 56... Rxa8
{[%clk 0:00:06.1]} 57. Rxa8 {[%clk 0:01:15]} 57... Ke7 {[%clk 0:00:08]} 58. Kb3
{[%clk 0:01:07.8]} 58... Kd6 {[%clk 0:00:09.5]} 59. Rb8 {[%clk 0:01:00.9]} 59...
Kc5 {[%clk 0:00:10.6]} 60. Ka4 {[%clk 0:01:00.8]} 60... Ne3 {[%clk 0:00:03.5]}
61. Ka5 {[%clk 0:01:00.6]} 61... Nd5 {[%clk 0:00:03.1]} 62. Rc8+ {[%clk
0:01:00.3]} 1-0

[Event "GrandPrix_29.05"]
[Site "Chess.com"]
[Date "2020.05.29"]
[Round "4"]
[White "Kostya_Nikologorskiy"]
[Black "EvgenyPigusov"]
[Result "1/2-1/2"]
[WhiteElo "2275"]
[BlackElo "2196"]
[TimeControl "600+2"]
[EndTime "11:01:12 PDT"]
[Termination "Game drawn - insufficient material"]

1. d4 {[%clk 0:09:59.2]} 1... Nf6 {[%clk 0:10:00.1]} 2. Bf4 {[%clk 0:09:57]}
2... d5 {[%clk 0:09:51.3]} 3. Nf3 {[%clk 0:09:54.2]} 3... e6 {[%clk 0:09:49.3]}
4. e3 {[%clk 0:09:53]} 4... c5 {[%clk 0:09:49.7]} 5. c3 {[%clk 0:09:52.7]} 5...
Nc6 {[%clk 0:09:46.8]} 6. Bd3 {[%clk 0:09:50.2]} 6... Bd6 {[%clk 0:09:46.1]} 7.
Bg3 {[%clk 0:09:49.5]} 7... O-O {[%clk 0:09:44.3]} 8. Nbd2 {[%clk 0:09:42.7]}
8... b6 {[%clk 0:09:44.5]} 9. Ne5 {[%clk 0:09:14.4]} 9... Bb7 {[%clk 0:09:43.6]}
10. O-O {[%clk 0:09:13.1]} 10... Ne7 {[%clk 0:09:38.1]} 11. Bh4 {[%clk
0:08:48.8]} 11... Ng6 {[%clk 0:09:11.1]} 12. Bxf6 {[%clk 0:08:42.4]} 12... gxf6
{[%clk 0:09:01.3]} 13. Nef3 {[%clk 0:08:18.8]} 13... f5 {[%clk 0:09:00.1]} 14.
g3 {[%clk 0:07:43.8]} 14... c4 {[%clk 0:08:54.3]} 15. Bc2 {[%clk 0:07:40.1]}
15... b5 {[%clk 0:08:54.4]} 16. Kg2 {[%clk 0:07:26.3]} 16... a5 {[%clk
0:08:36.2]} 17. h4 {[%clk 0:07:26]} 17... Kh8 {[%clk 0:08:30.5]} 18. Ng5 {[%clk
0:07:14.5]} 18... Qf6 {[%clk 0:08:08.8]} 19. Rh1 {[%clk 0:07:00.8]} 19... Qg7
{[%clk 0:08:00.5]} 20. f4 {[%clk 0:06:59.4]} 20... Ne7 {[%clk 0:07:49.7]} 21.
Kf2 {[%clk 0:06:50.1]} 21... Ng8 {[%clk 0:07:49.6]} 22. g4 {[%clk 0:06:34.8]}
22... fxg4 {[%clk 0:07:36.8]} 23. Qxg4 {[%clk 0:06:07.8]} 23... f5 {[%clk
0:07:20.5]} 24. Qh3 {[%clk 0:05:44]} 24... Bc8 {[%clk 0:07:09.3]} 25. Rag1
{[%clk 0:05:43.2]} 25... Qe7 {[%clk 0:06:55.4]} 26. Ndf3 {[%clk 0:05:23.5]}
26... Nf6 {[%clk 0:06:52.7]} 27. Ne5 {[%clk 0:04:59.2]} 27... Bd7 {[%clk
0:06:47.5]} 28. h5 {[%clk 0:04:48.6]} 28... Bxe5 {[%clk 0:06:47.6]} 29. dxe5
{[%clk 0:04:42.7]} 29... Ng4+ {[%clk 0:06:41.2]} 30. Ke2 {[%clk 0:04:37.5]}
30... b4 {[%clk 0:06:35.4]} 31. Rxg4 {[%clk 0:04:16.8]} 31... fxg4 {[%clk
0:06:33.8]} 32. Qxg4 {[%clk 0:04:18.7]} 32... bxc3 {[%clk 0:06:26.7]} 33. Nxh7
{[%clk 0:03:44.8]} 33... Rg8 {[%clk 0:06:08]} 34. Qf3 {[%clk 0:02:34.3]} 34...
Rab8 {[%clk 0:05:57.9]} 35. b3 {[%clk 0:02:34.1]} 35... cxb3 {[%clk 0:05:55.3]}
36. axb3 {[%clk 0:02:36]} 36... a4 {[%clk 0:05:49.6]} 37. Nf6 {[%clk 0:02:27.4]}
37... Rgf8 {[%clk 0:05:20]} 38. Qg3 {[%clk 0:02:08.3]} 38... axb3 {[%clk
0:05:08.5]} 39. Qg6 {[%clk 0:02:02.7]} 39... Qg7 {[%clk 0:05:02.1]} 40. Qxg7+
{[%clk 0:01:46.4]} 40... Kxg7 {[%clk 0:05:02]} 41. Rg1+ {[%clk 0:01:31.2]} 41...
Kf7 {[%clk 0:04:45]} 42. Nxd7 {[%clk 0:00:37.9]} 42... bxc2 {[%clk 0:04:36.1]}
43. Nxb8 {[%clk 0:00:38.4]} 43... Rxb8 {[%clk 0:04:24.4]} 44. Rc1 {[%clk
0:00:39.3]} 44... Rh8 {[%clk 0:03:19.1]} 45. Rxc2 {[%clk 0:00:36.1]} 45... Rxh5
{[%clk 0:03:20.1]} 46. Rxc3 {[%clk 0:00:37.4]} 46... Rh2+ {[%clk 0:03:13.4]} 47.
Kd3 {[%clk 0:00:35]} 47... Rh1 {[%clk 0:03:01.6]} 48. Rc7+ {[%clk 0:00:35.1]}
48... Ke8 {[%clk 0:02:59.5]} 49. Kd4 {[%clk 0:00:23.5]} 49... Kd8 {[%clk
0:02:56.9]} 50. Ra7 {[%clk 0:00:21.8]} 50... Rc1 {[%clk 0:02:56.7]} 51. Rh7
{[%clk 0:00:21.6]} 51... Rc4+ {[%clk 0:02:55.3]} 52. Kd3 {[%clk 0:00:22.7]}
52... Ra4 {[%clk 0:02:56.2]} 53. Rb7 {[%clk 0:00:20.2]} 53... Ke8 {[%clk
0:02:55.7]} 54. Ke2 {[%clk 0:00:20.5]} 54... d4 {[%clk 0:02:47.5]} 55. exd4
{[%clk 0:00:16.4]} 55... Rxd4 {[%clk 0:02:47.4]} 56. Kf3 {[%clk 0:00:17.3]}
56... Rd1 {[%clk 0:02:47.5]} 57. Rb2 {[%clk 0:00:11.3]} 57... Kf7 {[%clk
0:02:45.2]} 58. Rb7+ {[%clk 0:00:11.5]} 58... Ke8 {[%clk 0:02:45.7]} 59. Rb3
{[%clk 0:00:12.3]} 59... Kf7 {[%clk 0:02:46.1]} 60. Kg4 {[%clk 0:00:12.6]} 60...
Rg1+ {[%clk 0:02:45.5]} 61. Rg3 {[%clk 0:00:13.5]} 61... Rf1 {[%clk 0:02:45.6]}
62. Kg5 {[%clk 0:00:13.7]} 62... Rf2 {[%clk 0:02:43.4]} 63. Rg4 {[%clk
0:00:14.5]} 63... Rf1 {[%clk 0:02:41.9]} 64. Rg2 {[%clk 0:00:15.6]} 64... Rf3
{[%clk 0:02:41.6]} 65. Kg4 {[%clk 0:00:15.8]} 65... Rf1 {[%clk 0:02:42.2]} 66.
Rh2 {[%clk 0:00:17]} 66... Rg1+ {[%clk 0:02:42.6]} 67. Kf3 {[%clk 0:00:17.9]}
67... Rf1+ {[%clk 0:02:41.2]} 68. Rf2 {[%clk 0:00:17.8]} 68... Rg1 {[%clk
0:02:41.3]} 69. Rh2 {[%clk 0:00:17.3]} 69... Rf1+ {[%clk 0:02:42]} 70. Ke3
{[%clk 0:00:18.8]} 70... Re1+ {[%clk 0:02:40.7]} 71. Kf2 {[%clk 0:00:19.8]}
71... Ra1 {[%clk 0:02:39.5]} 72. Rh7+ {[%clk 0:00:20.7]} 72... Kg6 {[%clk
0:02:21.9]} 73. Re7 {[%clk 0:00:20.7]} 73... Kf5 {[%clk 0:02:22.2]} 74. Rf7+
{[%clk 0:00:21.6]} 74... Ke4 {[%clk 0:02:14.1]} 75. Rf6 {[%clk 0:00:22.6]} 75...
Ra3 {[%clk 0:02:09.7]} 76. Kg2 {[%clk 0:00:22.8]} 76... Rf3 {[%clk 0:02:05.9]}
77. Rxe6 {[%clk 0:00:15.7]} 77... Rxf4 {[%clk 0:02:06.5]} 78. Rg6 {[%clk
0:00:11.8]} 78... Rf5 {[%clk 0:02:03.8]} 79. e6 {[%clk 0:00:10]} 79... Re5
{[%clk 0:01:59.4]} 80. Kg3 {[%clk 0:00:09.5]} 80... Kf5 {[%clk 0:01:59.1]} 81.
Rh6 {[%clk 0:00:10.7]} 81... Rxe6 {[%clk 0:02:00.1]} 82. Rxe6 {[%clk 0:00:11.4]}
82... Kxe6 {[%clk 0:02:01.1]} 1/2-1/2

[Event "GrandPrix_29.05"]
[Site "Chess.com"]
[Date "2020.05.29"]
[Round "4"]
[White "Vazgen352"]
[Black "lilleper1"]
[Result "1/2-1/2"]
[WhiteElo "2484"]
[BlackElo "2353"]
[TimeControl "600+2"]
[EndTime "11:01:14 PDT"]
[Termination "Game drawn by repetition"]

1. c4 {[%clk 0:10:01]} 1... c5 {[%clk 0:10:00.3]} 2. Nc3 {[%clk 0:10:01.4]} 2...
Nc6 {[%clk 0:10:00.9]} 3. g3 {[%clk 0:10:03]} 3... g6 {[%clk 0:10:01.8]} 4. Bg2
{[%clk 0:10:04.3]} 4... Bg7 {[%clk 0:10:02.9]} 5. Nf3 {[%clk 0:10:04.8]} 5... d6
{[%clk 0:10:03.2]} 6. d3 {[%clk 0:10:03]} 6... e6 {[%clk 0:09:56.7]} 7. O-O
{[%clk 0:10:03.3]} 7... Nge7 {[%clk 0:09:56.7]} 8. Bg5 {[%clk 0:10:04.8]} 8...
h6 {[%clk 0:09:48.1]} 9. Bd2 {[%clk 0:10:05.5]} 9... O-O {[%clk 0:09:41.6]} 10.
Rb1 {[%clk 0:10:05.5]} 10... b6 {[%clk 0:09:37.3]} 11. a3 {[%clk 0:10:06.5]}
11... Bb7 {[%clk 0:09:37.4]} 12. Qc1 {[%clk 0:10:07.8]} 12... Kh7 {[%clk
0:09:28.6]} 13. b4 {[%clk 0:10:08.5]} 13... Qd7 {[%clk 0:09:15.4]} 14. b5 {[%clk
0:10:03.2]} 14... Nd4 {[%clk 0:08:38.8]} 15. Nxd4 {[%clk 0:10:00.6]} 15... Bxg2
{[%clk 0:08:35.5]} 16. Nxe6 {[%clk 0:09:27.4]} 16... fxe6 {[%clk 0:07:51.6]} 17.
Kxg2 {[%clk 0:09:26.9]} 17... d5 {[%clk 0:07:52.6]} 18. Qc2 {[%clk 0:08:56.2]}
18... Nf5 {[%clk 0:07:44]} 19. Qa2 {[%clk 0:08:05.1]} 19... Bxc3 {[%clk
0:06:09.6]} 20. Bxc3 {[%clk 0:08:04.4]} 20... d4 {[%clk 0:06:10.4]} 21. Bd2
{[%clk 0:08:05.4]} 21... e5 {[%clk 0:06:04.6]} 22. Kg1 {[%clk 0:07:42.7]} 22...
h5 {[%clk 0:05:57.5]} 23. Bg5 {[%clk 0:07:31.3]} 23... Ng7 {[%clk 0:05:43.7]}
24. e4 {[%clk 0:06:55.5]} 24... Qg4 {[%clk 0:05:16.7]} 25. Qd2 {[%clk
0:06:09.4]} 25... Ne6 {[%clk 0:04:44.5]} 26. f4 {[%clk 0:05:31.7]} 26... Rf7
{[%clk 0:02:33]} 27. Qd1 {[%clk 0:04:36.7]} 27... Qh3 {[%clk 0:01:27.1]} 28. Qe2
{[%clk 0:03:27.5]} 28... Raf8 {[%clk 0:01:02.2]} 29. Qg2 {[%clk 0:03:27.6]}
29... Nxg5 {[%clk 0:00:56.6]} 30. fxg5 {[%clk 0:03:26.4]} 30... Qg4 {[%clk
0:00:54.1]} 31. Rxf7+ {[%clk 0:00:32.2]} 31... Rxf7 {[%clk 0:00:54.7]} 32. h4
{[%clk 0:00:31.2]} 32... Rf3 {[%clk 0:00:48.8]} 33. Kh2 {[%clk 0:00:32.1]} 33...
Rxd3 {[%clk 0:00:45]} 34. Rf1 {[%clk 0:00:32.8]} 34... Re3 {[%clk 0:00:43.5]}
35. Rf2 {[%clk 0:00:08.8]} 35... d3 {[%clk 0:00:36.4]} 36. Rf7+ {[%clk
0:00:06.2]} 36... Kg8 {[%clk 0:00:35.2]} 37. Qf2 {[%clk 0:00:07.1]} 37... Qxg3+
{[%clk 0:00:17.5]} 38. Qxg3 {[%clk 0:00:08.1]} 38... Rxg3 {[%clk 0:00:18.3]} 39.
Rf6 {[%clk 0:00:04.8]} 39... Re3 {[%clk 0:00:17.1]} 40. Rxg6+ {[%clk 0:00:05.8]}
40... Kf7 {[%clk 0:00:16.8]} 41. Rd6 {[%clk 0:00:07.5]} 41... Rxe4 {[%clk
0:00:17]} 42. Rxd3 {[%clk 0:00:07.4]} 42... Rxh4+ {[%clk 0:00:17.9]} 43. Kg3
{[%clk 0:00:08.3]} 43... Rxc4 {[%clk 0:00:17.3]} 44. Rd7+ {[%clk 0:00:06.6]}
44... Kg6 {[%clk 0:00:17.9]} 45. Rxa7 {[%clk 0:00:08.5]} 45... Kxg5 {[%clk
0:00:17.4]} 46. Ra6 {[%clk 0:00:09.7]} 46... Rc3+ {[%clk 0:00:17.7]} 47. Kf2
{[%clk 0:00:11.3]} 47... Kf4 {[%clk 0:00:16.6]} 48. Rxb6 {[%clk 0:00:12.1]}
48... Rxa3 {[%clk 0:00:17.3]} 49. Rh6 {[%clk 0:00:13.2]} 49... Ra2+ {[%clk
0:00:15.7]} 50. Ke1 {[%clk 0:00:14.5]} 50... Kg5 {[%clk 0:00:16.6]} 51. Rc6
{[%clk 0:00:14.2]} 51... h4 {[%clk 0:00:16.1]} 52. Rxc5 {[%clk 0:00:15.2]} 52...
Kf4 {[%clk 0:00:17.1]} 53. Rc4+ {[%clk 0:00:14.2]} 53... Ke3 {[%clk 0:00:17.1]}
54. Rc3+ {[%clk 0:00:14.2]} 54... Kf4 {[%clk 0:00:13.7]} 55. Rb3 {[%clk
0:00:15]} 55... e4 {[%clk 0:00:12.5]} 56. b6 {[%clk 0:00:16.3]} 56... Ra1+
{[%clk 0:00:10.7]} 57. Ke2 {[%clk 0:00:17.2]} 57... Ra2+ {[%clk 0:00:11.5]} 58.
Ke1 {[%clk 0:00:18.6]} 58... Ra1+ {[%clk 0:00:10.2]} 59. Ke2 {[%clk 0:00:20]}
59... Ra2+ {[%clk 0:00:11.3]} 60. Ke1 {[%clk 0:00:21.5]} 1/2-1/2

[Event "GrandPrix_29.05"]
[Site "Chess.com"]
[Date "2020.05.29"]
[Round "4"]
[White "PotapovaM"]
[Black "2346PL"]
[Result "1-0"]
[WhiteElo "2176"]
[BlackElo "2040"]
[TimeControl "600+2"]
[EndTime "11:01:14 PDT"]
[Termination "PotapovaM won on time"]

1. d4 {[%clk 0:09:57.4]} 1... f5 {[%clk 0:10:00.7]} 2. e4 {[%clk 0:09:48]} 2...
fxe4 {[%clk 0:10:01.3]} 3. Nc3 {[%clk 0:09:48.9]} 3... Nf6 {[%clk 0:10:01.3]} 4.
Bg5 {[%clk 0:09:48.5]} 4... Nc6 {[%clk 0:10:02.5]} 5. d5 {[%clk 0:09:48.6]} 5...
Ne5 {[%clk 0:10:03.2]} 6. Qe2 {[%clk 0:09:47]} 6... Nf7 {[%clk 0:09:57.6]} 7. h4
{[%clk 0:09:47.3]} 7... h6 {[%clk 0:08:48.5]} 8. Bxf6 {[%clk 0:09:46.2]} 8...
exf6 {[%clk 0:08:50.1]} 9. Qxe4+ {[%clk 0:09:34]} 9... Qe7 {[%clk 0:08:48]} 10.
Qxe7+ {[%clk 0:09:28.9]} 10... Bxe7 {[%clk 0:08:48.9]} 11. O-O-O {[%clk
0:09:30.4]} 11... Bc5 {[%clk 0:08:40.2]} 12. Re1+ {[%clk 0:08:46]} 12... Kd8
{[%clk 0:08:39.9]} 13. Ne4 {[%clk 0:08:24.5]} 13... Re8 {[%clk 0:08:35.9]} 14.
Nf3 {[%clk 0:08:14.5]} 14... Bb6 {[%clk 0:08:24.2]} 15. Bd3 {[%clk 0:08:14.9]}
15... d6 {[%clk 0:08:17.8]} 16. Bb5 {[%clk 0:07:36.9]} 16... Bd7 {[%clk
0:08:09.8]} 17. Bxd7 {[%clk 0:07:37.4]} 17... Kxd7 {[%clk 0:08:11.7]} 18. g4
{[%clk 0:07:23.9]} 18... Ne5 {[%clk 0:07:45.9]} 19. Nxe5+ {[%clk 0:07:15.8]}
19... Rxe5 {[%clk 0:07:24.2]} 20. c4 {[%clk 0:07:16.3]} 20... Rae8 {[%clk
0:06:39.9]} 21. f3 {[%clk 0:07:16.9]} 21... h5 {[%clk 0:06:39.6]} 22. c5 {[%clk
0:04:59.9]} 22... dxc5 {[%clk 0:06:38.1]} 23. Reg1 {[%clk 0:04:43.2]} 23... c4
{[%clk 0:06:16.8]} 24. Rg2 {[%clk 0:04:41.6]} 24... R8e7 {[%clk 0:04:43.1]} 25.
gxh5 {[%clk 0:04:30]} 25... Rxh5 {[%clk 0:04:40.9]} 26. Rxg7 {[%clk 0:04:24.7]}
26... Rxg7 {[%clk 0:02:32.1]} 27. Nxf6+ {[%clk 0:04:25.2]} 27... Kd6 {[%clk
0:02:33.4]} 28. Nxh5 {[%clk 0:04:27.1]} 28... Rf7 {[%clk 0:02:29.1]} 29. Rf1
{[%clk 0:03:43.8]} 29... Ke5 {[%clk 0:01:19.6]} 30. f4+ {[%clk 0:03:32.5]} 30...
Kxd5 {[%clk 0:01:08.1]} 31. f5 {[%clk 0:03:10.2]} 31... Bd4 {[%clk 0:00:53.7]}
32. Kc2 {[%clk 0:02:36]} 32... Be5 {[%clk 0:00:54.1]} 33. f6 {[%clk 0:02:22.6]}
33... Ke6 {[%clk 0:00:44.6]} 34. Ng7+ {[%clk 0:02:23.1]} 34... Kd5 {[%clk
0:00:39.1]} 35. Nh5 {[%clk 0:02:10.3]} 35... Ke6 {[%clk 0:00:38.5]} 36. Rf3
{[%clk 0:01:16.5]} 36... Rh7 {[%clk 0:00:30.7]} 37. Ng7+ {[%clk 0:00:51.6]}
37... Kf7 {[%clk 0:00:29.6]} 38. Rf5 {[%clk 0:00:23.7]} 38... Bxf6 {[%clk
0:00:30.3]} 39. Nh5 {[%clk 0:00:23.2]} 39... Kg6 {[%clk 0:00:21.4]} 40. Nxf6
{[%clk 0:00:20.7]} 40... Rxh4 {[%clk 0:00:21.6]} 41. Rf2 {[%clk 0:00:18]} 41...
c6 {[%clk 0:00:20.7]} 42. Nd7 {[%clk 0:00:18.3]} 42... Re4 {[%clk 0:00:17.3]}
43. Nc5 {[%clk 0:00:18.4]} 43... Re7 {[%clk 0:00:17.9]} 44. a4 {[%clk
0:00:11.7]} 44... b6 {[%clk 0:00:17.3]} 45. Na6 {[%clk 0:00:10.1]} 45... Kg5
{[%clk 0:00:13.8]} 46. Nb4 {[%clk 0:00:09.5]} 46... Re6 {[%clk 0:00:10.9]} 47.
Kc3 {[%clk 0:00:10]} 47... a5 {[%clk 0:00:10.3]} 48. Nc2 {[%clk 0:00:09.1]}
48... b5 {[%clk 0:00:10.4]} 49. axb5 {[%clk 0:00:06.7]} 49... cxb5 {[%clk
0:00:10.7]} 50. Nd4 {[%clk 0:00:08.1]} 50... Re3+ {[%clk 0:00:11.2]} 51. Kc2
{[%clk 0:00:09.7]} 51... b4 {[%clk 0:00:10]} 52. Rf5+ {[%clk 0:00:06.7]} 52...
Kg4 {[%clk 0:00:10.7]} 53. Rxa5 {[%clk 0:00:07.8]} 53... b3+ {[%clk 0:00:07.3]}
54. Kc1 {[%clk 0:00:08.5]} 54... Kf4 {[%clk 0:00:03.7]} 55. Ra4 {[%clk
0:00:06.2]} 1-0